[Event "Early-Titled-Tuesday-Blitz-August-29-2023"]
[Site "Chess.com"]
[Date "2023.08.29"]
[Round "4"]
[White "AniJak"]
[Black "wqws"]
[Result "0-1"]
[WhiteElo "2378"]
[BlackElo "2650"]
[TimeControl "180+1"]
[EndTime "8:36:24 PDT"]
[Termination "wqws won by checkmate"]

1. e4 {[%clk 0:03:00.9]} 1... c5 {[%clk 0:03:00.2]} 2. Nf3 {[%clk 0:02:58.3]}
2... d6 {[%clk 0:03:00.5]} 3. d4 {[%clk 0:02:57.9]} 3... cxd4 {[%clk 0:03:01.4]}
4. Nxd4 {[%clk 0:02:57.8]} 4... Nf6 {[%clk 0:03:02]} 5. Nc3 {[%clk 0:02:57.7]}
5... a6 {[%clk 0:03:02.5]} 6. h3 {[%clk 0:02:57.2]} 6... e5 {[%clk 0:03:02.8]}
7. Nb3 {[%clk 0:02:53.9]} 7... h5 {[%clk 0:03:02.6]} 8. Bg5 {[%clk 0:02:52.5]}
8... Be6 {[%clk 0:03:02.9]} 9. g3 {[%clk 0:02:47.4]} 9... Be7 {[%clk 0:02:57.9]}
10. Bg2 {[%clk 0:02:46.5]} 10... Nbd7 {[%clk 0:02:56.2]} 11. O-O {[%clk
0:02:38.8]} 11... h4 {[%clk 0:02:50.9]} 12. g4 {[%clk 0:02:38]} 12... Nh7 {[%clk
0:02:45]} 13. Bxe7 {[%clk 0:02:36.2]} 13... Qxe7 {[%clk 0:02:45.9]} 14. Qd2
{[%clk 0:02:35.1]} 14... Ng5 {[%clk 0:02:18.7]} 15. Rad1 {[%clk 0:02:27.6]}
15... Bxg4 {[%clk 0:02:18.4]} 16. hxg4 {[%clk 0:01:58.8]} 16... h3 {[%clk
0:02:18.4]} 17. Bh1 {[%clk 0:01:58.9]} 17... h2+ {[%clk 0:02:08]} 18. Kg2 {[%clk
0:01:58.8]} 18... Ne6 {[%clk 0:01:56.7]} 19. Nd5 {[%clk 0:01:30.6]} 19... Qh4
{[%clk 0:01:54.4]} 20. Qd3 {[%clk 0:01:30.7]} 20... Nf4+ {[%clk 0:01:36.3]} 21.
Nxf4 {[%clk 0:01:28.4]} 21... exf4 {[%clk 0:01:37.2]} 22. f3 {[%clk 0:01:00.7]}
22... Qg3# {[%clk 0:01:34.6]} 0-1

[Event "Early-Titled-Tuesday-Blitz-August-29-2023"]
[Site "Chess.com"]
[Date "2023.08.29"]
[Round "4"]
[White "nihalsarin"]
[Black "kuli4ik"]
[Result "1-0"]
[WhiteElo "3145"]
[BlackElo "2905"]
[TimeControl "180+1"]
[EndTime "8:36:26 PDT"]
[Termination "nihalsarin won by resignation"]

1. Nf3 {[%clk 0:03:00.9]} 1... g6 {[%clk 0:02:56.5]} 2. d4 {[%clk 0:03:00.8]}
2... Bg7 {[%clk 0:02:57.1]} 3. Bf4 {[%clk 0:02:59.3]} 3... d6 {[%clk 0:02:57.1]}
4. e3 {[%clk 0:03:00.1]} 4... Nd7 {[%clk 0:02:57.4]} 5. h3 {[%clk 0:03:00.9]}
5... e5 {[%clk 0:02:57.4]} 6. Bh2 {[%clk 0:03:01.7]} 6... Nh6 {[%clk 0:02:57.1]}
7. c3 {[%clk 0:03:02.4]} 7... O-O {[%clk 0:02:56.4]} 8. Nbd2 {[%clk 0:03:03.2]}
8... f5 {[%clk 0:02:56.3]} 9. Bc4+ {[%clk 0:03:03.6]} 9... Kh8 {[%clk
0:02:56.3]} 10. O-O {[%clk 0:03:04.3]} 10... g5 {[%clk 0:02:55.3]} 11. a4 {[%clk
0:03:01.5]} 11... g4 {[%clk 0:02:53]} 12. hxg4 {[%clk 0:03:02.4]} 12... Nxg4
{[%clk 0:02:53.4]} 13. a5 {[%clk 0:03:02.4]} 13... e4 {[%clk 0:02:50.3]} 14. Ne1
{[%clk 0:03:02.8]} 14... Nxh2 {[%clk 0:02:49.7]} 15. Kxh2 {[%clk 0:03:03.7]}
15... Nf6 {[%clk 0:02:49.9]} 16. Kg1 {[%clk 0:03:03.5]} 16... a6 {[%clk
0:02:47.7]} 17. g3 {[%clk 0:03:03.5]} 17... d5 {[%clk 0:02:40.6]} 18. Be2 {[%clk
0:03:03.4]} 18... Ng4 {[%clk 0:02:37.9]} 19. Ng2 {[%clk 0:03:03.7]} 19... c6
{[%clk 0:02:36.3]} 20. Nf4 {[%clk 0:03:04]} 20... Bh6 {[%clk 0:02:35.5]} 21. Kg2
{[%clk 0:03:04.7]} 21... Bxf4 {[%clk 0:02:34.7]} 22. exf4 {[%clk 0:03:05.6]}
22... Rg8 {[%clk 0:02:30.3]} 23. Rh1 {[%clk 0:03:05.8]} 23... Qd6 {[%clk
0:02:24.7]} 24. Nf1 {[%clk 0:03:01.3]} 24... Nf6 {[%clk 0:02:20.6]} 25. Rh4
{[%clk 0:03:01.7]} 25... Be6 {[%clk 0:02:16.8]} 26. Ne3 {[%clk 0:03:02]} 26...
Rg6 {[%clk 0:02:16.9]} 27. Qh1 {[%clk 0:03:02.3]} 27... Rag8 {[%clk 0:02:15.9]}
28. Qh2 {[%clk 0:03:02.9]} 28... R8g7 {[%clk 0:02:15.1]} 29. Rh1 {[%clk
0:03:03.5]} 29... Kg8 {[%clk 0:02:14.8]} 30. Kf1 {[%clk 0:03:03.6]} 30... c5
{[%clk 0:02:13]} 31. Rh6 {[%clk 0:03:02.3]} 31... cxd4 {[%clk 0:02:10.1]} 32.
cxd4 {[%clk 0:03:03.2]} 32... Qb4 {[%clk 0:02:09.2]} 33. Rxg6 {[%clk 0:03:01.9]}
33... hxg6 {[%clk 0:01:51.5]} 34. Qh8+ {[%clk 0:03:02.8]} 34... Kf7 {[%clk
0:01:51.9]} 35. Qb8 {[%clk 0:03:02.1]} 35... Qxb2 {[%clk 0:01:34.3]} 36. Rh8
{[%clk 0:02:52.4]} 36... Rg8 {[%clk 0:01:29.3]} 37. Qc7+ {[%clk 0:02:52.7]}
37... Nd7 {[%clk 0:01:18.9]} 38. Rh7+ {[%clk 0:02:46.9]} 38... Rg7 {[%clk
0:01:18.6]} 39. Rxg7+ {[%clk 0:02:47.7]} 39... Kxg7 {[%clk 0:01:18.5]} 40. Qd6
{[%clk 0:02:48.6]} 40... Nf8 {[%clk 0:01:03]} 41. Qe5+ {[%clk 0:02:48.8]} 41...
Kh7 {[%clk 0:00:48.7]} 42. Nxd5 {[%clk 0:02:49.4]} 42... Bxd5 {[%clk 0:00:40.9]}
43. Qxd5 {[%clk 0:02:50.3]} 43... b6 {[%clk 0:00:40.6]} 44. Qf7+ {[%clk
0:02:50.2]} 44... Kh6 {[%clk 0:00:40]} 45. Qxf8+ {[%clk 0:02:51.1]} 45... Kh7
{[%clk 0:00:40.2]} 46. Qf7+ {[%clk 0:02:50.8]} 1-0

[Event "Early-Titled-Tuesday-Blitz-August-29-2023"]
[Site "Chess.com"]
[Date "2023.08.29"]
[Round "4"]
[White "Orest_Vovk"]
[Black "Mops_2004"]
[Result "1-0"]
[WhiteElo "2549"]
[BlackElo "2779"]
[TimeControl "180+1"]
[EndTime "8:36:40 PDT"]
[Termination "Orest_Vovk won by resignation"]

1. e4 {[%clk 0:03:00.9]} 1... c6 {[%clk 0:02:59.2]} 2. Nc3 {[%clk 0:02:59.8]}
2... d5 {[%clk 0:02:59.2]} 3. Qe2 {[%clk 0:03:00.7]} 3... d4 {[%clk 0:02:56.8]}
4. Nd1 {[%clk 0:03:00.8]} 4... e5 {[%clk 0:02:56.8]} 5. f4 {[%clk 0:03:01]} 5...
exf4 {[%clk 0:02:48]} 6. Nf3 {[%clk 0:02:59.9]} 6... c5 {[%clk 0:02:45.8]} 7.
Nf2 {[%clk 0:02:59]} 7... Nc6 {[%clk 0:02:45.2]} 8. d3 {[%clk 0:02:58.2]} 8...
Nge7 {[%clk 0:02:40.8]} 9. Bxf4 {[%clk 0:02:56.9]} 9... Ng6 {[%clk 0:02:41]} 10.
Bg5 {[%clk 0:02:50.5]} 10... Be7 {[%clk 0:02:37.4]} 11. Bxe7 {[%clk 0:02:50.2]}
11... Qxe7 {[%clk 0:02:37.4]} 12. g3 {[%clk 0:02:49.8]} 12... O-O {[%clk
0:02:35.4]} 13. Bg2 {[%clk 0:02:50]} 13... Nce5 {[%clk 0:02:34.4]} 14. Nxe5
{[%clk 0:02:48.8]} 14... Nxe5 {[%clk 0:02:34.4]} 15. O-O {[%clk 0:02:48.9]}
15... Be6 {[%clk 0:02:29]} 16. Bh3 {[%clk 0:02:46.9]} 16... Rac8 {[%clk
0:02:26]} 17. Bxe6 {[%clk 0:02:43.3]} 17... Qxe6 {[%clk 0:02:22.1]} 18. b3
{[%clk 0:02:38.6]} 18... f6 {[%clk 0:02:10.9]} 19. Kg2 {[%clk 0:02:30.5]} 19...
Rc7 {[%clk 0:01:54.7]} 20. h3 {[%clk 0:02:22.5]} 20... b5 {[%clk 0:01:41.8]} 21.
a4 {[%clk 0:02:20.5]} 21... c4 {[%clk 0:01:42.1]} 22. bxc4 {[%clk 0:02:02.9]}
22... bxc4 {[%clk 0:01:42.1]} 23. Ng4 {[%clk 0:02:02.5]} 23... cxd3 {[%clk
0:01:37]} 24. cxd3 {[%clk 0:02:01.1]} 24... Rfc8 {[%clk 0:01:36.4]} 25. Ra2
{[%clk 0:01:38.8]} 25... Nxg4 {[%clk 0:01:35.5]} 26. hxg4 {[%clk 0:01:37.8]}
26... Qxa2 {[%clk 0:00:58.7]} 27. Qxa2+ {[%clk 0:01:38.7]} 1-0

[Event "Early-Titled-Tuesday-Blitz-August-29-2023"]
[Site "Chess.com"]
[Date "2023.08.29"]
[Round "4"]
[White "Mesa_1"]
[Black "Legendinunknown"]
[Result "1-0"]
[WhiteElo "2583"]
[BlackElo "2798"]
[TimeControl "180+1"]
[EndTime "8:36:51 PDT"]
[Termination "Mesa_1 won by resignation"]

1. d4 {[%clk 0:02:59.9]} 1... Nf6 {[%clk 0:02:58.4]} 2. Nf3 {[%clk 0:03:00.4]}
2... g6 {[%clk 0:02:58]} 3. Bf4 {[%clk 0:03:00.4]} 3... Bg7 {[%clk 0:02:58.1]}
4. e3 {[%clk 0:03:01.1]} 4... d6 {[%clk 0:02:58]} 5. Be2 {[%clk 0:03:01.7]} 5...
O-O {[%clk 0:02:58.1]} 6. O-O {[%clk 0:03:02.3]} 6... Nc6 {[%clk 0:02:58.4]} 7.
h3 {[%clk 0:03:02]} 7... Nd7 {[%clk 0:02:58.6]} 8. c4 {[%clk 0:03:00.8]} 8... e5
{[%clk 0:02:58.7]} 9. Bh2 {[%clk 0:03:01.6]} 9... Qe7 {[%clk 0:02:58.4]} 10. Nc3
{[%clk 0:03:01.5]} 10... Nf6 {[%clk 0:02:56]} 11. Nd5 {[%clk 0:02:59.6]} 11...
Nxd5 {[%clk 0:02:49.6]} 12. cxd5 {[%clk 0:03:00.5]} 12... Nb4 {[%clk 0:02:45.3]}
13. dxe5 {[%clk 0:02:53]} 13... dxe5 {[%clk 0:02:46.2]} 14. a3 {[%clk
0:02:51.7]} 14... Na6 {[%clk 0:02:44.3]} 15. Rc1 {[%clk 0:02:52.4]} 15... Bf5
{[%clk 0:02:40]} 16. Bxa6 {[%clk 0:02:34.3]} 16... bxa6 {[%clk 0:02:38.3]} 17.
Qa4 {[%clk 0:02:35]} 17... Rab8 {[%clk 0:02:36]} 18. Qxa6 {[%clk 0:02:30.5]}
18... Rxb2 {[%clk 0:02:34.8]} 19. Rfd1 {[%clk 0:02:31.2]} 19... Be4 {[%clk
0:02:32.4]} 20. Ne1 {[%clk 0:01:42]} 20... Bh6 {[%clk 0:02:08.5]} 21. Qxa7
{[%clk 0:01:30.9]} 21... Qf6 {[%clk 0:02:05.3]} 22. Bg3 {[%clk 0:01:21]} 22...
Rd8 {[%clk 0:02:00.1]} 23. Qxc7 {[%clk 0:01:16.4]} 23... Bg7 {[%clk 0:01:44.4]}
24. Rc6 {[%clk 0:01:10.9]} 24... Rxd5 {[%clk 0:01:31.5]} 25. Rxd5 {[%clk
0:01:00]} 25... Bxd5 {[%clk 0:01:32.4]} 26. Qc8+ {[%clk 0:00:50.4]} 1-0

[Event "Early-Titled-Tuesday-Blitz-August-29-2023"]
[Site "Chess.com"]
[Date "2023.08.29"]
[Round "4"]
[White "dropstoneDP"]
[Black "ozates"]
[Result "1-0"]
[WhiteElo "2968"]
[BlackElo "2569"]
[TimeControl "180+1"]
[EndTime "8:37:01 PDT"]
[Termination "dropstoneDP won by resignation"]

1. e4 {[%clk 0:03:00.9]} 1... c5 {[%clk 0:02:38.2]} 2. Nf3 {[%clk 0:03:00.6]}
2... Nc6 {[%clk 0:02:38.4]} 3. Bb5 {[%clk 0:03:00.4]} 3... g6 {[%clk 0:02:37.7]}
4. O-O {[%clk 0:02:59.8]} 4... Bg7 {[%clk 0:02:37.4]} 5. c3 {[%clk 0:03:00.5]}
5... Nf6 {[%clk 0:02:33.8]} 6. Re1 {[%clk 0:03:00.5]} 6... O-O {[%clk
0:02:33.4]} 7. h3 {[%clk 0:03:01.1]} 7... Qb6 {[%clk 0:02:30.8]} 8. a4 {[%clk
0:03:00.4]} 8... a6 {[%clk 0:02:30.6]} 9. Bf1 {[%clk 0:02:59.1]} 9... d5 {[%clk
0:02:28.1]} 10. e5 {[%clk 0:02:59.7]} 10... Nd7 {[%clk 0:02:28.1]} 11. d4 {[%clk
0:03:00.3]} 11... Qc7 {[%clk 0:02:17.5]} 12. h4 {[%clk 0:02:58.1]} 12... Rb8
{[%clk 0:02:16.4]} 13. h5 {[%clk 0:02:58.1]} 13... e6 {[%clk 0:02:13.4]} 14. h6
{[%clk 0:02:58.4]} 14... Bh8 {[%clk 0:02:13.4]} 15. Bf4 {[%clk 0:02:56.1]} 15...
b5 {[%clk 0:02:12.8]} 16. axb5 {[%clk 0:02:55.9]} 16... axb5 {[%clk 0:02:13.5]}
17. g3 {[%clk 0:02:54.8]} 17... c4 {[%clk 0:02:04.1]} 18. Nbd2 {[%clk
0:02:53.4]} 18... Nb6 {[%clk 0:01:59.4]} 19. Nh2 {[%clk 0:02:52.7]} 19... Qe7
{[%clk 0:01:46]} 20. Ng4 {[%clk 0:02:52.2]} 20... Ra8 {[%clk 0:01:41.8]} 21.
Rxa8 {[%clk 0:02:51.2]} 21... Nxa8 {[%clk 0:01:42]} 22. Nf3 {[%clk 0:02:51.7]}
22... Nb6 {[%clk 0:01:28.9]} 23. Bg5 {[%clk 0:02:51.7]} 23... Qb7 {[%clk
0:01:22.2]} 24. Qd2 {[%clk 0:02:52.2]} 24... Nd7 {[%clk 0:01:19.7]} 25. Qf4
{[%clk 0:02:52.2]} 25... b4 {[%clk 0:00:43.1]} 26. Bf6 {[%clk 0:02:41.3]} 26...
bxc3 {[%clk 0:00:38.6]} 27. bxc3 {[%clk 0:02:42.2]} 27... Qb2 {[%clk 0:00:34.6]}
28. Bxh8 {[%clk 0:02:38.5]} 28... Kxh8 {[%clk 0:00:35.5]} 29. Nf6 {[%clk
0:02:38.4]} 29... Ncb8 {[%clk 0:00:35]} 30. Ng5 {[%clk 0:02:30.6]} 30... Qxc3
{[%clk 0:00:32.2]} 31. Nfxh7 {[%clk 0:02:30.9]} 31... f5 {[%clk 0:00:11.4]} 32.
exf6 {[%clk 0:02:18.6]} 32... Qxe1 {[%clk 0:00:10.4]} 33. Nxf8 {[%clk 0:02:19]}
33... Nxf8 {[%clk 0:00:11]} 34. Qxb8 {[%clk 0:02:19.4]} 1-0

[Event "Early-Titled-Tuesday-Blitz-August-29-2023"]
[Site "Chess.com"]
[Date "2023.08.29"]
[Round "4"]
[White "CFalcons8"]
[Black "sofaceindisguise"]
[Result "1-0"]
[WhiteElo "2245"]
[BlackElo "2600"]
[TimeControl "180+1"]
[EndTime "8:37:03 PDT"]
[Termination "CFalcons8 won by resignation"]

1. e4 {[%clk 0:03:00.9]} 1... c5 {[%clk 0:02:59.9]} 2. Nf3 {[%clk 0:02:58.7]}
2... e6 {[%clk 0:02:59.7]} 3. d4 {[%clk 0:02:57.5]} 3... cxd4 {[%clk 0:03:00.6]}
4. Nxd4 {[%clk 0:02:57.5]} 4... Nc6 {[%clk 0:03:00.8]} 5. Nc3 {[%clk 0:02:53.1]}
5... Nf6 {[%clk 0:03:00]} 6. Nxc6 {[%clk 0:02:44.7]} 6... bxc6 {[%clk 0:02:55]}
7. e5 {[%clk 0:02:43.8]} 7... Nd5 {[%clk 0:02:53.2]} 8. Ne4 {[%clk 0:02:42.4]}
8... Qc7 {[%clk 0:02:52.4]} 9. f4 {[%clk 0:02:42.9]} 9... Qb6 {[%clk 0:02:35.7]}
10. c4 {[%clk 0:02:42.1]} 10... Ne3 {[%clk 0:02:31.8]} 11. Qd3 {[%clk
0:02:35.5]} 11... Nxf1 {[%clk 0:02:25.8]} 12. Rxf1 {[%clk 0:02:36.4]} 12... Bb7
{[%clk 0:02:16]} 13. Bd2 {[%clk 0:02:20.7]} 13... c5 {[%clk 0:02:13]} 14. Bc3
{[%clk 0:02:14.8]} 14... Be7 {[%clk 0:02:11.3]} 15. f5 {[%clk 0:02:05.5]} 15...
exf5 {[%clk 0:02:05]} 16. Rxf5 {[%clk 0:02:06.4]} 16... Qg6 {[%clk 0:01:59.6]}
17. Nd6+ {[%clk 0:01:46.2]} 17... Bxd6 {[%clk 0:01:57.4]} 18. exd6 {[%clk
0:01:47.1]} 18... O-O {[%clk 0:01:53.6]} 19. O-O-O {[%clk 0:01:37.5]} 19... Rfe8
{[%clk 0:01:52.4]} 20. Rxc5 {[%clk 0:01:31.5]} 20... Be4 {[%clk 0:01:50.6]} 21.
Qd2 {[%clk 0:01:17.7]} 21... Re6 {[%clk 0:01:39.3]} 22. Rg5 {[%clk 0:01:04.2]}
22... Qh6 {[%clk 0:01:30.5]} 23. Bxg7 {[%clk 0:01:00.3]} 23... Qh4 {[%clk
0:01:23.2]} 24. Bf6+ {[%clk 0:00:55.6]} 24... Bg6 {[%clk 0:01:10.9]} 25. Rxg6+
{[%clk 0:00:55.1]} 1-0

[Event "Early-Titled-Tuesday-Blitz-August-29-2023"]
[Site "Chess.com"]
[Date "2023.08.29"]
[Round "4"]
[White "Elsa167"]
[Black "slidingknight2775"]
[Result "1-0"]
[WhiteElo "2872"]
[BlackElo "2579"]
[TimeControl "180+1"]
[EndTime "8:37:06 PDT"]
[Termination "Elsa167 won by checkmate"]

1. e4 {[%clk 0:03:00.9]} 1... c5 {[%clk 0:02:59.5]} 2. Nf3 {[%clk 0:03:01]} 2...
d6 {[%clk 0:02:59.5]} 3. d4 {[%clk 0:03:01.6]} 3... cxd4 {[%clk 0:03:00.4]} 4.
Qxd4 {[%clk 0:03:01.4]} 4... Nc6 {[%clk 0:03:00.4]} 5. Bb5 {[%clk 0:03:00.9]}
5... Bd7 {[%clk 0:03:00.8]} 6. Bxc6 {[%clk 0:03:01.4]} 6... Bxc6 {[%clk
0:03:01.7]} 7. Nc3 {[%clk 0:03:02]} 7... e5 {[%clk 0:03:02.2]} 8. Qd3 {[%clk
0:03:01.6]} 8... h6 {[%clk 0:03:02.6]} 9. Nd2 {[%clk 0:02:57.1]} 9... Nf6 {[%clk
0:03:00.9]} 10. Nc4 {[%clk 0:02:52.8]} 10... Be7 {[%clk 0:02:38.2]} 11. Ne3
{[%clk 0:02:52.1]} 11... O-O {[%clk 0:02:31.4]} 12. a4 {[%clk 0:02:51.1]} 12...
Qa5 {[%clk 0:02:02.7]} 13. O-O {[%clk 0:02:50.2]} 13... Qa6 {[%clk 0:01:58.7]}
14. Nf5 {[%clk 0:02:39.9]} 14... Rfe8 {[%clk 0:01:45]} 15. Qg3 {[%clk
0:02:39.7]} 15... g6 {[%clk 0:01:31.1]} 16. Nxe7+ {[%clk 0:02:24.7]} 16... Rxe7
{[%clk 0:01:29.9]} 17. Qh4 {[%clk 0:02:24.3]} 17... Re6 {[%clk 0:01:25.1]} 18.
Bxh6 {[%clk 0:02:24.4]} 18... Qc4 {[%clk 0:01:19.9]} 19. Rae1 {[%clk 0:02:14.5]}
19... d5 {[%clk 0:00:50.5]} 20. Bg5 {[%clk 0:01:53.6]} 20... Nxe4 {[%clk
0:00:34.8]} 21. Nxe4 {[%clk 0:01:52.2]} 21... dxe4 {[%clk 0:00:35.4]} 22. Re3
{[%clk 0:01:40.1]} 22... Kf8 {[%clk 0:00:14.1]} 23. Qh8# {[%clk 0:01:39]} 1-0

[Event "Early-Titled-Tuesday-Blitz-August-29-2023"]
[Site "Chess.com"]
[Date "2023.08.29"]
[Round "4"]
[White "ljuks68"]
[Black "Galileo22"]
[Result "0-1"]
[WhiteElo "2457"]
[BlackElo "2692"]
[TimeControl "180+1"]
[EndTime "8:37:07 PDT"]
[Termination "Galileo22 won by resignation"]

1. e4 {[%clk 0:02:47]} 1... g6 {[%clk 0:02:56.4]} 2. d4 {[%clk 0:02:46.4]} 2...
Bg7 {[%clk 0:02:57.1]} 3. Nc3 {[%clk 0:02:46.7]} 3... d5 {[%clk 0:02:55.6]} 4.
Nxd5 {[%clk 0:02:46.1]} 4... c6 {[%clk 0:02:54.3]} 5. Ne3 {[%clk 0:02:43.8]}
5... Qxd4 {[%clk 0:02:52.7]} 6. Qxd4 {[%clk 0:02:43.2]} 6... Bxd4 {[%clk
0:02:53.6]} 7. c3 {[%clk 0:02:38.6]} 7... Bg7 {[%clk 0:02:53.2]} 8. a4 {[%clk
0:02:35.4]} 8... Nd7 {[%clk 0:02:50]} 9. a5 {[%clk 0:02:34.9]} 9... Nc5 {[%clk
0:02:50]} 10. f3 {[%clk 0:02:32.6]} 10... Nb3 {[%clk 0:02:49.4]} 11. Rb1 {[%clk
0:02:32.7]} 11... b5 {[%clk 0:02:11.4]} 12. axb6 {[%clk 0:02:10]} 12... axb6
{[%clk 0:02:12.3]} 13. Bc4 {[%clk 0:02:02.7]} 13... Nxc1 {[%clk 0:02:04.5]} 14.
Rxc1 {[%clk 0:02:03]} 14... Nf6 {[%clk 0:01:56.2]} 15. Ne2 {[%clk 0:02:02.7]}
15... Nd7 {[%clk 0:01:50.9]} 16. f4 {[%clk 0:01:51.8]} 16... Nc5 {[%clk
0:01:46]} 17. Ng3 {[%clk 0:01:47.6]} 17... b5 {[%clk 0:01:39.4]} 18. Be2 {[%clk
0:01:45.7]} 18... Ra2 {[%clk 0:01:25]} 19. b4 {[%clk 0:01:37.4]} 19... Nb3
{[%clk 0:01:22.2]} 20. Rb1 {[%clk 0:01:36.6]} 20... Bxc3+ {[%clk 0:01:21.4]} 21.
Kf2 {[%clk 0:01:31.7]} 21... Nd4 {[%clk 0:01:15.2]} 22. Rhc1 {[%clk 0:01:30.3]}
22... Bd2 {[%clk 0:01:12.5]} 23. Rd1 {[%clk 0:01:27.7]} 23... h5 {[%clk
0:01:08.5]} 24. h4 {[%clk 0:01:21.6]} 24... f6 {[%clk 0:01:07.7]} 25. Ra1 {[%clk
0:00:56.5]} 25... Bxe3+ {[%clk 0:01:05.2]} 0-1

[Event "Early-Titled-Tuesday-Blitz-August-29-2023"]
[Site "Chess.com"]
[Date "2023.08.29"]
[Round "4"]
[White "DeArron_Fox"]
[Black "TigranHH"]
[Result "1-0"]
[WhiteElo "2496"]
[BlackElo "2304"]
[TimeControl "180+1"]
[EndTime "8:37:10 PDT"]
[Termination "DeArron_Fox won by resignation"]

1. d4 {[%clk 0:03:00.9]} 1... Nf6 {[%clk 0:02:57.7]} 2. c4 {[%clk 0:03:01.4]}
2... e6 {[%clk 0:02:57.3]} 3. Nf3 {[%clk 0:03:00.9]} 3... d5 {[%clk 0:02:56.7]}
4. Nc3 {[%clk 0:03:00.4]} 4... c5 {[%clk 0:02:53.6]} 5. cxd5 {[%clk 0:02:58.8]}
5... Nxd5 {[%clk 0:02:53.1]} 6. e4 {[%clk 0:02:58.6]} 6... Nxc3 {[%clk
0:02:53.7]} 7. bxc3 {[%clk 0:02:59.5]} 7... cxd4 {[%clk 0:02:54.1]} 8. cxd4
{[%clk 0:03:00.4]} 8... Bb4+ {[%clk 0:02:54.1]} 9. Bd2 {[%clk 0:03:01.1]} 9...
Bxd2+ {[%clk 0:02:54.8]} 10. Qxd2 {[%clk 0:03:02]} 10... O-O {[%clk 0:02:54.8]}
11. Bc4 {[%clk 0:03:02.6]} 11... Nd7 {[%clk 0:02:53.9]} 12. O-O {[%clk
0:03:03.2]} 12... b6 {[%clk 0:02:54.4]} 13. Rfe1 {[%clk 0:03:03.3]} 13... Bb7
{[%clk 0:02:54.5]} 14. Rad1 {[%clk 0:03:04]} 14... Re8 {[%clk 0:02:48.3]} 15. d5
{[%clk 0:02:50.7]} 15... exd5 {[%clk 0:02:39.2]} 16. exd5 {[%clk 0:02:50.4]}
16... Rxe1+ {[%clk 0:02:35.8]} 17. Rxe1 {[%clk 0:02:47.8]} 17... Qf6 {[%clk
0:02:20.3]} 18. d6 {[%clk 0:00:51.4]} 18... Bxf3 {[%clk 0:01:56.5]} 19. gxf3
{[%clk 0:00:52.3]} 19... Ne5 {[%clk 0:01:54.8]} 20. Qd5 {[%clk 0:00:16.3]} 20...
Nxf3+ {[%clk 0:01:36.1]} 21. Kh1 {[%clk 0:00:16.2]} 21... Nxe1 {[%clk
0:01:33.1]} 22. Qxa8+ {[%clk 0:00:15.7]} 1-0

[Event "Early-Titled-Tuesday-Blitz-August-29-2023"]
[Site "Chess.com"]
[Date "2023.08.29"]
[Round "4"]
[White "Russian_berezka"]
[Black "Reader777"]
[Result "0-1"]
[WhiteElo "2578"]
[BlackElo "2878"]
[TimeControl "180+1"]
[EndTime "8:37:13 PDT"]
[Termination "Reader777 won on time"]

1. d4 {[%clk 0:03:00.9]} 1... Nf6 {[%clk 0:02:59.4]} 2. c4 {[%clk 0:02:59.3]}
2... e6 {[%clk 0:02:58.5]} 3. Nc3 {[%clk 0:02:59]} 3... Bb4 {[%clk 0:02:57.2]}
4. e3 {[%clk 0:02:59.5]} 4... O-O {[%clk 0:02:56.7]} 5. Bd2 {[%clk 0:03:00.2]}
5... c5 {[%clk 0:02:56.1]} 6. a3 {[%clk 0:03:00.1]} 6... Bxc3 {[%clk 0:02:56.4]}
7. Bxc3 {[%clk 0:03:00.5]} 7... Ne4 {[%clk 0:02:57.3]} 8. Ne2 {[%clk 0:03:00.5]}
8... b6 {[%clk 0:02:57.5]} 9. d5 {[%clk 0:03:01]} 9... Ba6 {[%clk 0:02:56]} 10.
Qd3 {[%clk 0:03:01.6]} 10... exd5 {[%clk 0:02:42.8]} 11. Qxd5 {[%clk 0:03:02.5]}
11... Qe7 {[%clk 0:02:41.6]} 12. b3 {[%clk 0:03:02]} 12... Nc6 {[%clk
0:02:37.9]} 13. Bb2 {[%clk 0:02:56.5]} 13... Rfe8 {[%clk 0:02:32.9]} 14. Ng3
{[%clk 0:02:51.3]} 14... Bb7 {[%clk 0:01:38.1]} 15. Nf5 {[%clk 0:02:11]} 15...
Qg5 {[%clk 0:01:32.4]} 0-1

[Event "Early-Titled-Tuesday-Blitz-August-29-2023"]
[Site "Chess.com"]
[Date "2023.08.29"]
[Round "4"]
[White "Xavier_mompel"]
[Black "Hoshka"]
[Result "1-0"]
[WhiteElo "2304"]
[BlackElo "1995"]
[TimeControl "180+1"]
[EndTime "8:37:25 PDT"]
[Termination "Xavier_mompel won by resignation"]

1. e4 {[%clk 0:03:00.9]} 1... e5 {[%clk 0:02:59.6]} 2. Nf3 {[%clk 0:03:01.4]}
2... Nc6 {[%clk 0:02:59]} 3. Bb5 {[%clk 0:03:01.8]} 3... a6 {[%clk 0:02:58.5]}
4. Ba4 {[%clk 0:03:01.6]} 4... Nf6 {[%clk 0:02:58]} 5. O-O {[%clk 0:03:01.1]}
5... Be7 {[%clk 0:02:57.6]} 6. Re1 {[%clk 0:03:01.1]} 6... b5 {[%clk 0:02:57.2]}
7. Bb3 {[%clk 0:03:01.5]} 7... d6 {[%clk 0:02:57.2]} 8. a4 {[%clk 0:03:01.6]}
8... Bg4 {[%clk 0:02:50.1]} 9. c3 {[%clk 0:02:45.5]} 9... O-O {[%clk 0:02:39.4]}
10. d3 {[%clk 0:02:23.1]} 10... b4 {[%clk 0:02:35.6]} 11. Bd2 {[%clk 0:02:20.5]}
11... a5 {[%clk 0:02:28.1]} 12. h3 {[%clk 0:02:04]} 12... Be6 {[%clk 0:02:16]}
13. Bxe6 {[%clk 0:01:35.5]} 13... fxe6 {[%clk 0:02:15.5]} 14. Qb3 {[%clk
0:01:33.9]} 14... Qd7 {[%clk 0:02:11.8]} 15. d4 {[%clk 0:01:24.4]} 15... exd4
{[%clk 0:02:05.3]} 16. cxd4 {[%clk 0:01:24.4]} 16... d5 {[%clk 0:01:57]} 17.
exd5 {[%clk 0:00:54.8]} 17... exd5 {[%clk 0:01:53.4]} 18. Bg5 {[%clk 0:00:51.8]}
18... h6 {[%clk 0:01:44.1]} 19. Bh4 {[%clk 0:00:50.1]} 19... g5 {[%clk
0:01:37.3]} 20. Bg3 {[%clk 0:00:48.8]} 20... Nh5 {[%clk 0:01:36.6]} 21. Ne5
{[%clk 0:00:41]} 21... Nxd4 {[%clk 0:01:06.1]} 22. Qd3 {[%clk 0:00:39.4]} 22...
Nf5 {[%clk 0:01:05.5]} 23. Nxd7 {[%clk 0:00:38.4]} 1-0